Workbook

Sheet Polska
A1: MIGRACJE WEWNĘTRZNE LUDNOŚCI NA POBYT STAŁY WEDŁUG PŁCI MIGRANTÓW W LATACH 1998-2021
A3: Polska
A4: Lata | B4: Napływ - mężczyźni | C4: Odpływ - mężczyźni | D4: Saldo migracji - mężczyźni | E4: Napływ - kobiety | F4: Odpływ - kobiety | G4: Saldo migracji - kobiety | H4: Napływ - ogółem | I4: Odpływ - ogółem | J4: Saldo migracji - ogółem
A5: 1998 | B5: 204516 | C5: 204516 | D5: x | E5: 221341 | F5: 221341 | G5: x | H5: 425857 | I5: 425857 | J5: x
A6: 1999 | B6: 204183 | C6: 204183 | D6: x | E6: 228251 | F6: 228251 | G6: x | H6: 432434 | I6: 432434 | J6: x
A7: 2000 | B7: 186360 | C7: 186360 | D7: x | E7: 207733 | F7: 207733 | G7: x | H7: 394093 | I7: 394093 | J7: x
A8: 2001 | B8: 174165 | C8: 174165 | D8: x | E8: 195109 | F8: 195109 | G8: x | H8: 369274 | I8: 369274 | J8: x
A9: 2002 | B9: 190611 | C9: 190611 | D9: x | E9: 212951 | F9: 212951 | G9: x | H9: 403562 | I9: 403562 | J9: x
A10: 2003 | B10: 201395 | C10: 201395 | D10: x | E10: 229080 | F10: 229080 | G10: x | H10: 430475 | I10: 430475 | J10: x
A11: 2004 | B11: 204133 | C11: 204133 | D11: x | E11: 228499 | F11: 228499 | G11: x | H11: 432632 | I11: 432632 | J11: x
A12: 2005 | B12: 197411 | C12: 197411 | D12: x | E12: 225368 | F12: 225368 | G12: x | H12: 422779 | I12: 422779 | J12: x
A13: 2006 | B13: 222346 | C13: 222346 | D13: x | E13: 251202 | F13: 251202 | G13: x | H13: 473548 | I13: 473548 | J13: x
A14: 2007 | B14: 241033 | C14: 241033 | D14: x | E14: 270221 | F14: 270221 | G14: x | H14: 511254 | I14: 511254 | J14: x
A15: 2008 | B15: 185437 | C15: 185437 | D15: x | E15: 220037 | F15: 220037 | G15: x | H15: 405474 | I15: 405474 | J15: x
A16: 2009 | B16: 183062 | C16: 183062 | D16: x | E16: 220775 | F16: 220775 | G16: x | H16: 403837 | I16: 403837 | J16: x
A17: 2010 | B17: 194036 | C17: 194036 | D17: x | E17: 228585 | F17: 228585 | G17: x | H17: 422621 | I17: 422621 | J17: x
A18: 2011 | B18: 193140 | C18: 193140 | D18: x | E18: 226806 | F18: 226806 | G18: x | H18: 419946 | I18: 419946 | J18: x
A19: 2012 | B19: 182182 | C19: 182182 | D19: x | E19: 213096 | F19: 213096 | G19: x | H19: 395278 | I19: 395278 | J19: x
A20: 2013 | B20: 200434 | C20: 200434 | D20: x | E20: 226845 | F20: 226845 | G20: x | H20: 427279 | I20: 427279 | J20: x
A21: 2014 | B21: 189310 | C21: 189310 | D21: x | E21: 218294 | F21: 218294 | G21: x | H21: 407604 | I21: 407604 | J21: x
A22: 2015 | B22: 180967 | C22: 180967 | D22: x | E22: 206579 | F22: 206579 | G22: x | H22: 387546 | I22: 387546 | J22: x
A23: 2016 | B23: 176475 | C23: 176475 | D23: x | E23: 201721 | F23: 201721 | G23: x | H23: 378196 | I23: 378196 | J23: x
A24: 2017 | B24: 187827 | C24: 187827 | D24: x | E24: 212525 | F24: 212525 | G24: x | H24: 400352 | I24: 400352 | J24: x
A25: 2018 | B25: 211183 | C25: 211183 | D25: x | E25: 238588 | F25: 238588 | G25: x | H25: 449771 | I25: 449771 | J25: x
A26: 2019 | B26: 219710 | C26: 219710 | D26: x | E26: 248616 | F26: 248616 | G26: x | H26: 468326 | I26: 468326 | J26: x
A27: 2020 | B27: 181705 | C27: 181705 | D27: x | E27: 203322 | F27: 203322 | G27: x | H27: 385027 | I27: 385027 | J27: x
A28: 2021 | B28: 203613 | C28: 203613 | D28: x | E28: 226106 | F28: 226106 | G28: x | H28: 429719 | I28: 429719 | J28: x

Sheet Dolnośląskie
A1: MIGRACJE WEWNĘTRZNE LUDNOŚCI NA POBYT STAŁY WEDŁUG PŁCI MIGRANTÓW W LATACH 1998-2021
M2: Dolnośląskie
M3: Lata | N3: Napływ - mężczyźni | O3: Odpływ - mężczyźni | P3: Saldo migracji - mężczyźni | Q3: Napływ - kobiety | R3: Odpływ - kobiety | S3: Saldo migracji - kobiety | T3: Napływ - ogółem | U3: Odpływ - ogółem | V3: Saldo migracji - ogółem
M4: 1998 | N4: 15359 | O4: 15804 | P4: =N4-O4 -> -445 | Q4: 16292 | R4: 16810 | S4: =Q4-R4 -> -518 | T4: =N4+Q4 -> 31651 | U4: =O4+R4 -> 32614 | V4: =P4+S4 -> -963
M5: 1999 | N5: 16012 | O5: 16187 | P5: -175 | Q5: 17452 | R5: 17560 | S5: -108 | T5: 33464 | U5: 33747 | V5: -283
M6: 2000 | N6: 13780 | O6: 14031 | P6: -251 | Q6: 15106 | R6: 15428 | S6: -322 | T6: 28886 | U6: 29459 | V6: -573
M7: 2001 | N7: 13700 | O7: 13575 | P7: 125 | Q7: 14845 | R7: 14793 | S7: 52 | T7: 28545 | U7: 28368 | V7: 177
M8: 2002 | N8: 14255 | O8: 14618 | P8: -363 | Q8: 15723 | R8: 16044 | S8: -321 | T8: 29978 | U8: 30662 | V8: -684
M9: 2003 | N9: 14049 | O9: 14525 | P9: -476 | Q9: 15674 | R9: 16417 | S9: -743 | T9: 29723 | U9: 30942 | V9: -1219
M10: 2004 | N10: 14539 | O10: 14965 | P10: -426 | Q10: 16070 | R10: 16534 | S10: -464 | T10: 30609 | U10: 31499 | V10: -890
M11: 2005 | N11: 13472 | O11: 13929 | P11: -457 | Q11: 15386 | R11: 15859 | S11: -473 | T11: 28858 | U11: 29788 | V11: -930
M12: 2006 | N12: 18347 | O12: 18079 | P12: 268 | Q12: 20147 | R12: 20011 | S12: 136 | T12: 38494 | U12: 38090 | V12: 404
M13: 2007 | N13: 18758 | O13: 18613 | P13: 145 | Q13: 20809 | R13: 20607 | S13: 202 | T13: 39567 | U13: 39220 | V13: 347
M14: 2008 | N14: 15383 | O14: 15242 | P14: 141 | Q14: 18082 | R14: 17697 | S14: 385 | T14: 33465 | U14: 32939 | V14: 526
M15: 2009 | N15: 15188 | O15: 14873 | P15: 315 | Q15: 18265 | R15: 17449 | S15: 816 | T15: 33453 | U15: 32322 | V15: 1131
M16: 2010 | N16: 16489 | O16: 15745 | P16: 744 | Q16: 19359 | R16: 18524 | S16: 835 | T16: 35848 | U16: 34269 | V16: 1579
M17: 2011 | N17: 16517 | O17: 15901 | P17: 616 | Q17: 19098 | R17: 18155 | S17: 943 | T17: 35615 | U17: 34056 | V17: 1559
M18: 2012 | N18: 15725 | O18: 14974 | P18: 751 | Q18: 18110 | R18: 17126 | S18: 984 | T18: 33835 | U18: 32100 | V18: =P18+S18 -> 1735
M19: 2013 | N19: 17451 | O19: 16334 | P19: 1117 | Q19: 19414 | R19: 18140 | S19: 1274 | T19: 36865 | U19: 34474 | V19: =P19+S19 -> 2391
M20: 2014 | N20: 16435 | O20: 15435 | P20: 1000 | Q20: 18852 | R20: 17426 | S20: 1426 | T20: 35287 | U20: 32861 | V20: =P20+S20 -> 2426
M21: 2015 | N21: 15481 | O21: 14182 | P21: 1299 | Q21: 17619 | R21: 16266 | S21: 1353 | T21: 33100 | U21: 30448 | V21: 2652
M22: 2016 | N22: 14975 | O22: 13732 | P22: 1243 | Q22: 16960 | R22: 15544 | S22: 1416 | T22: 31935 | U22: 29276 | V22: 2659
M23: 2017 | N23: 16047 | O23: 14923 | P23: 1124 | Q23: 18352 | R23: 16881 | S23: 1471 | T23: 34399 | U23: 31804 | V23: 2595
M24: 2018 | N24: 18609 | O24: 16975 | P24: 1634 | Q24: 20733 | R24: 19167 | S24: 1566 | T24: 39342 | U24: 36142 | V24: 3200
M25: 2019 | N25: 19545 | O25: 17607 | P25: 1938 | Q25: 21992 | R25: 19715 | S25: 2277 | T25: 41537 | U25: 37322 | V25: 4215
M26: 2020 | N26: 16531 | O26: 15008 | P26: 1523 | Q26: 18426 | R26: 16654 | S26: 1772 | T26: 34957 | U26: 31662 | V26: 3295
M27: 2021 | N27: 18201 | O27: 16546 | P27: 1655 | Q27: 20281 | R27: 18631 | S27: 1650 | T27: 38482 | U27: 35177 | V27: 3305

Sheet Kujawsko-pomorskie
A1: MIGRACJE WEWNĘTRZNE LUDNOŚCI NA POBYT STAŁY WEDŁUG PŁCI MIGRANTÓW W LATACH 1998-2021
L2: Kujawsko-pomorskie
L3: Lata | M3: Napływ - mężczyźni | N3: Odpływ - mężczyźni | O3: Saldo migracji - mężczyźni | P3: Napływ - kobiety | Q3: Odpływ - kobiety | R3: Saldo migracji - kobiety | S3: Napływ - ogółem | T3: Odpływ - ogółem | U3: Saldo migracji - ogółem
L4: 1998 | M4: 11564 | N4: 11564 | O4: 0 | P4: 12755 | Q4: 12831 | R4: =P4-Q4 -> -76 | S4: =M4+P4 -> 24319 | T4: =N4+Q4 -> 24395 | U4: =O4+R4 -> -76
L5: 1999 | M5: 11843 | N5: 12012 | O5: =M5-N5 -> -169 | P5: 13264 | Q5: 13339 | R5: -75 | S5: 25107 | T5: 25351 | U5: -244
L6: 2000 | M6: 10722 | N6: 10881 | O6: -159 | P6: 11812 | Q6: 12060 | R6: -248 | S6: 22534 | T6: 22941 | U6: -407
L7: 2001 | M7: 9942 | N7: 10251 | O7: -309 | P7: 10973 | Q7: 11532 | R7: -559 | S7: 20915 | T7: 21783 | U7: -868
L8: 2002 | M8: 11000 | N8: 11400 | O8: -400 | P8: 12002 | Q8: 12623 | R8: -621 | S8: 23002 | T8: 24023 | U8: -1021
L9: 2003 | M9: 11629 | N9: 12057 | O9: -428 | P9: 13086 | Q9: 13715 | R9: -629 | S9: 24715 | T9: 25772 | U9: -1057
L10: 2004 | M10: 11692 | N10: 12244 | O10: -552 | P10: 12945 | Q10: 13487 | R10: -542 | S10: 24637 | T10: 25731 | U10: -1094
L11: 2005 | M11: 11315 | N11: 11950 | O11: -635 | P11: 12833 | Q11: 13748 | R11: -915 | S11: 24148 | T11: 25698 | U11: -1550
L12: 2006 | M12: 12645 | N12: 13428 | O12: -783 | P12: 14374 | Q12: 15214 | R12: -840 | S12: 27019 | T12: 28642 | U12: -1623
L13: 2007 | M13: 13476 | N13: 14096 | O13: -620 | P13: 15016 | Q13: 15860 | R13: -844 | S13: 28492 | T13: 29956 | U13: -1464
L14: 2008 | M14: 10858 | N14: 11324 | O14: -466 | P14: 12528 | Q14: 13121 | R14: -593 | S14: 23386 | T14: 24445 | U14: -1059
L15: 2009 | M15: 10529 | N15: 11067 | O15: -538 | P15: 12152 | Q15: 12929 | R15: -777 | S15: 22681 | T15: 23996 | U15: -1315
L16: 2010 | M16: 10585 | N16: 11312 | O16: -727 | P16: 12344 | Q16: 13060 | R16: -716 | S16: 22929 | T16: 24372 | U16: -1443
L17: 2011 | M17: 10744 | N17: 11283 | O17: -539 | P17: 12428 | Q17: 13210 | R17: -782 | S17: 23172 | T17: 24493 | U17: -1321
L18: 2012 | M18: 9991 | N18: 10669 | O18: -678 | P18: 11696 | Q18: 12546 | R18: -850 | S18: 21687 | T18: 23215 | U18: =O18+R18 -> -1528
L19: 2013 | M19: 10878 | N19: 11655 | O19: -777 | P19: 11973 | Q19: 12815 | R19: -842 | S19: 22851 | T19: 24470 | U19: =O19+R19 -> -1619
L20: 2014 | M20: 10197 | N20: 11009 | O20: -812 | P20: 11632 | Q20: 12558 | R20: -926 | S20: 21829 | T20: 23567 | U20: =O20+R20 -> -1738
L21: 2015 | M21: 9506 | N21: 10351 | O21: -845 | P21: 10897 | Q21: 11801 | R21: -904 | S21: 20403 | T21: 22152 | U21: -1749
L22: 2016 | M22: 9465 | N22: 10290 | O22: -825 | P22: 10847 | Q22: 11741 | R22: -894 | S22: 20312 | T22: 22031 | U22: -1719
L23: 2017 | M23: 9864 | N23: 10530 | O23: -666 | P23: 11124 | Q23: 11973 | R23: -849 | S23: 20988 | T23: 22503 | U23: -1515
L24: 2018 | M24: 10908 | N24: 12069 | O24: -1161 | P24: 12323 | Q24: 13703 | R24: -1380 | S24: 23231 | T24: 25772 | U24: -2541
L25: 2019 | M25: 11375 | N25: 12734 | O25: -1359 | P25: 12732 | Q25: 14294 | R25: -1562 | S25: 24107 | T25: 27028 | U25: -2921
L26: 2020 | M26: 9508 | N26: 10481 | O26: -973 | P26: 10696 | Q26: 11835 | R26: -1139 | S26: 20204 | T26: 22316 | U26: -2112
L27: 2021 | M27: 10688 | N27: 11794 | O27: -1106 | P27: 11810 | Q27: 12908 | R27: -1098 | S27: 22498 | T27: 24702 | U27: -2204

Sheet Lubelskie
A1: MIGRACJE WEWNĘTRZNE LUDNOŚCI NA POBYT STAŁY WEDŁUG PŁCI MIGRANTÓW W LATACH 1998-2021
L2: Lubelskie
L3: Lata | M3: Napływ - mężczyźni | N3: Odpływ - mężczyźni | O3: Saldo migracji - mężczyźni | P3: Napływ - kobiety | Q3: Odpływ - kobiety | R3: Saldo migracji - kobiety | S3: Napływ - ogółem | T3: Odpływ - ogółem | U3: Saldo migracji - ogółem
L4: 1998 | M4: 12311 | N4: 13352 | O4: =M4-N4 -> -1041 | P4: 13814 | Q4: 15065 | R4: =P4-Q4 -> -1251 | S4: =M4+P4 -> 26125 | T4: =N4+Q4 -> 28417 | U4: =O4+R4 -> -2292
L5: 1999 | M5: 12466 | N5: 13770 | O5: -1304 | P5: 14276 | Q5: 16006 | R5: -1730 | S5: 26742 | T5: 29776 | U5: -3034
L6: 2000 | M6: 10703 | N6: 11995 | O6: -1292 | P6: 12404 | Q6: 14081 | R6: -1677 | S6: 23107 | T6: 26076 | U6: -2969
L7: 2001 | M7: 9680 | N7: 11239 | O7: -1559 | P7: 10823 | Q7: 12907 | R7: -2084 | S7: 20503 | T7: 24146 | U7: -3643
L8: 2002 | M8: 10683 | N8: 12372 | O8: -1689 | P8: 12064 | Q8: 14215 | R8: -2151 | S8: 22747 | T8: 26587 | U8: -3840
L9: 2003 | M9: 11030 | N9: 12974 | O9: -1944 | P9: 12617 | Q9: 15249 | R9: -2632 | S9: 23647 | T9: 28223 | U9: -4576
L10: 2004 | M10: 11147 | N10: 12988 | O10: -1841 | P10: 12388 | Q10: 15098 | R10: -2710 | S10: 23535 | T10: 28086 | U10: -4551
L11: 2005 | M11: 10685 | N11: 12714 | O11: -2029 | P11: 12405 | Q11: 15281 | R11: -2876 | S11: 23090 | T11: 27995 | U11: -4905
L12: 2006 | M12: 11451 | N12: 13670 | O12: -2219 | P12: 13182 | Q12: 16123 | R12: -2941 | S12: 24633 | T12: 29793 | U12: -5160
L13: 2007 | M13: 12785 | N13: 14921 | O13: -2136 | P13: 14830 | Q13: 17837 | R13: -3007 | S13: 27615 | T13: 32758 | U13: -5143
L14: 2008 | M14: 9046 | N14: 10800 | O14: -1754 | P14: 11141 | Q14: 13505 | R14: -2364 | S14: 20187 | T14: 24305 | U14: -4118
L15: 2009 | M15: 8742 | N15: 10486 | O15: -1744 | P15: 11325 | Q15: 13818 | R15: -2493 | S15: 20067 | T15: 24304 | U15: -4237
L16: 2010 | M16: 9262 | N16: 11246 | O16: -1984 | P16: 11388 | Q16: 14271 | R16: -2883 | S16: 20650 | T16: 25517 | U16: -4867
L17: 2011 | M17: 9084 | N17: 11210 | O17: -2126 | P17: 11151 | Q17: 13985 | R17: -2834 | S17: 20235 | T17: 25195 | U17: -4960
L18: 2012 | M18: 8576 | N18: 10719 | O18: -2143 | P18: 10408 | Q18: 13283 | R18: -2875 | S18: 18984 | T18: 24002 | U18: =O18+R18 -> -5018
L19: 2013 | M19: 9254 | N19: 11415 | O19: -2161 | P19: 10965 | Q19: 13758 | R19: -2793 | S19: 20219 | T19: 25173 | U19: =O19+R19 -> -4954
L20: 2014 | M20: 9010 | N20: 11318 | O20: -2308 | P20: 10796 | Q20: 13613 | R20: -2817 | S20: 19806 | T20: 24931 | U20: =O20+R20 -> -5125
L21: 2015 | M21: 8746 | N21: 10946 | O21: -2200 | P21: 10237 | Q21: 12851 | R21: -2614 | S21: 18983 | T21: 23797 | U21: -4814
L22: 2016 | M22: 8772 | N22: 10753 | O22: -1981 | P22: 9817 | Q22: 12288 | R22: -2471 | S22: 18589 | T22: 23041 | U22: -4452
L23: 2017 | M23: 8983 | N23: 11254 | O23: -2271 | P23: 10179 | Q23: 12980 | R23: -2801 | S23: 19162 | T23: 24234 | U23: -5072
L24: 2018 | M24: 10067 | N24: 12651 | O24: -2584 | P24: 11456 | Q24: 14676 | R24: -3220 | S24: 21523 | T24: 27327 | U24: -5804
L25: 2019 | M25: 10388 | N25: 13280 | O25: -2892 | P25: 11659 | Q25: 15262 | R25: -3603 | S25: 22047 | T25: 28542 | U25: -6495
L26: 2020 | M26: 8549 | N26: 10712 | O26: -2163 | P26: 9650 | Q26: 12172 | R26: -2522 | S26: 18199 | T26: 22884 | U26: -4685
L27: 2021 | M27: 9767 | N27: 11971 | O27: -2204 | P27: 10949 | Q27: 13766 | R27: -2817 | S27: 20716 | T27: 25737 | U27: -5021

Sheet Lubuskie
A1: MIGRACJE WEWNĘTRZNE LUDNOŚCI NA POBYT STAŁY WEDŁUG PŁCI MIGRANTÓW W LATACH 1998-2021
L2: Lubuskie
L3: Lata | M3: Napływ - mężczyźni | N3: Odpływ - mężczyźni | O3: Saldo migracji - mężczyźni | P3: Napływ - kobiety | Q3: Odpływ - kobiety | R3: Saldo migracji - kobiety | S3: Napływ - ogółem | T3: Odpływ - ogółem | U3: Saldo migracji - ogółem
L4: 1998 | M4: 6574 | N4: 6478 | O4: =M4-N4 -> 96 | P4: 6955 | Q4: 6943 | R4: =P4-Q4 -> 12 | S4: =M4+P4 -> 13529 | T4: =N4+Q4 -> 13421 | U4: =O4+R4 -> 108
L5: 1999 | M5: 6185 | N5: 6311 | O5: -126 | P5: 6744 | Q5: 6877 | R5: -133 | S5: 12929 | T5: 13188 | U5: -259
L6: 2000 | M6: 5622 | N6: 5699 | O6: -77 | P6: 5928 | Q6: 6291 | R6: -363 | S6: 11550 | T6: 11990 | U6: -440
L7: 2001 | M7: 5299 | N7: 5678 | O7: -379 | P7: 5785 | Q7: 6218 | R7: -433 | S7: 11084 | T7: 11896 | U7: -812
L8: 2002 | M8: 5371 | N8: 5731 | O8: -360 | P8: 5910 | Q8: 6345 | R8: -435 | S8: 11281 | T8: 12076 | U8: -795
L9: 2003 | M9: 6020 | N9: 6213 | O9: -193 | P9: 6629 | Q9: 6871 | R9: -242 | S9: 12649 | T9: 13084 | U9: -435
L10: 2004 | M10: 6366 | N10: 6468 | O10: -102 | P10: 6947 | Q10: 7215 | R10: -268 | S10: 13313 | T10: 13683 | U10: -370
L11: 2005 | M11: 6220 | N11: 6332 | O11: -112 | P11: 6717 | Q11: 7040 | R11: -323 | S11: 12937 | T11: 13372 | U11: -435
L12: 2006 | M12: 6968 | N12: 7113 | O12: -145 | P12: 7523 | Q12: 7905 | R12: -382 | S12: 14491 | T12: 15018 | U12: -527
L13: 2007 | M13: 7362 | N13: 7475 | O13: -113 | P13: 8067 | Q13: 8433 | R13: -366 | S13: 15429 | T13: 15908 | U13: -479
L14: 2008 | M14: 6097 | N14: 6094 | O14: 3 | P14: 6908 | Q14: 7130 | R14: -222 | S14: 13005 | T14: 13224 | U14: -219
L15: 2009 | M15: 5742 | N15: 5861 | O15: -119 | P15: 6860 | Q15: 7191 | R15: -331 | S15: 12602 | T15: 13052 | U15: -450
L16: 2010 | M16: 5981 | N16: 6105 | O16: -124 | P16: 6800 | Q16: 7150 | R16: -350 | S16: 12781 | T16: 13255 | U16: -474
L17: 2011 | M17: 5954 | N17: 6212 | O17: -258 | P17: 6671 | Q17: 7078 | R17: -407 | S17: 12625 | T17: 13290 | U17: -665
L18: 2012 | M18: 5772 | N18: 5915 | O18: -143 | P18: 6676 | Q18: 6974 | R18: -298 | S18: 12448 | T18: 12889 | U18: =O18+R18 -> -441
L19: 2013 | M19: 6285 | N19: 6587 | O19: -302 | P19: 6881 | Q19: 7322 | R19: -441 | S19: 13166 | T19: 13909 | U19: =O19+R19 -> -743
L20: 2014 | M20: 5826 | N20: 6027 | O20: -201 | P20: 6391 | Q20: 6850 | R20: -459 | S20: 12217 | T20: 12877 | U20: =O20+R20 -> -660
L21: 2015 | M21: 5240 | N21: 5582 | O21: -342 | P21: 5719 | Q21: 6270 | R21: -551 | S21: 10959 | T21: 11852 | U21: -893
L22: 2016 | M22: 5059 | N22: 5382 | O22: -323 | P22: 5598 | Q22: 6015 | R22: -417 | S22: 10657 | T22: 11397 | U22: -740
L23: 2017 | M23: 5533 | N23: 5753 | O23: -220 | P23: 5905 | Q23: 6473 | R23: -568 | S23: 11438 | T23: 12226 | U23: -788
L24: 2018 | M24: 5882 | N24: 6308 | O24: -426 | P24: 6395 | Q24: 6940 | R24: -545 | S24: 12277 | T24: 13248 | U24: -971
L25: 2019 | M25: 6133 | N25: 6659 | O25: -526 | P25: 6768 | Q25: 7487 | R25: -719 | S25: 12901 | T25: 14146 | U25: -1245
L26: 2020 | M26: 5185 | N26: 5506 | O26: -321 | P26: 5574 | Q26: 6095 | R26: -521 | S26: 10759 | T26: 11601 | U26: -842
L27: 2021 | M27: 5538 | N27: 5991 | O27: -453 | P27: 6051 | Q27: 6666 | R27: -615 | S27: 11589 | T27: 12657 | U27: -1068

Sheet Łódzkie
A1: MIGRACJE WEWNĘTRZNE LUDNOŚCI NA POBYT STAŁY WEDŁUG PŁCI MIGRANTÓW W LATACH 1998-2021
L2: Łódzkie
L3: Lata | M3: Napływ - mężczyźni | N3: Odpływ - mężczyźni | O3: Saldo migracji - mężczyźni | P3: Napływ - kobiety | Q3: Odpływ - kobiety | R3: Saldo migracji - kobiety | S3: Napływ - ogółem | T3: Odpływ - ogółem | U3: Saldo migracji - ogółem
L4: 1998 | M4: 12646 | N4: 13232 | O4: =M4-N4 -> -586 | P4: 13343 | Q4: 14027 | R4: =P4-Q4 -> -684 | S4: =M4+P4 -> 25989 | T4: =N4+Q4 -> 27259 | U4: =O4+R4 -> -1270
L5: 1999 | M5: 11630 | N5: 12103 | O5: -473 | P5: 12908 | Q5: 13649 | R5: -741 | S5: 24538 | T5: 25752 | U5: -1214
L6: 2000 | M6: 10911 | N6: 11425 | O6: -514 | P6: 11871 | Q6: 12464 | R6: -593 | S6: 22782 | T6: 23889 | U6: -1107
L7: 2001 | M7: 9833 | N7: 10456 | O7: -623 | P7: 10991 | Q7: 11707 | R7: -716 | S7: 20824 | T7: 22163 | U7: -1339
L8: 2002 | M8: 10565 | N8: 11086 | O8: -521 | P8: 12001 | Q8: 12887 | R8: -886 | S8: 22566 | T8: 23973 | U8: -1407
L9: 2003 | M9: 11400 | N9: 11692 | O9: -292 | P9: 13150 | Q9: 13773 | R9: -623 | S9: 24550 | T9: 25465 | U9: -915
L10: 2004 | M10: 11360 | N10: 11925 | O10: -565 | P10: 12444 | Q10: 13358 | R10: -914 | S10: 23804 | T10: 25283 | U10: -1479
L11: 2005 | M11: 11257 | N11: 11880 | O11: -623 | P11: 12612 | Q11: 13553 | R11: -941 | S11: 23869 | T11: 25433 | U11: -1564
L12: 2006 | M12: 12328 | N12: 13139 | O12: -811 | P12: 13870 | Q12: 14830 | R12: -960 | S12: 26198 | T12: 27969 | U12: -1771
L13: 2007 | M13: 13592 | N13: 14253 | O13: -661 | P13: 14851 | Q13: 15843 | R13: -992 | S13: 28443 | T13: 30096 | U13: -1653
L14: 2008 | M14: 9804 | N14: 10291 | O14: -487 | P14: 11547 | Q14: 12403 | R14: -856 | S14: 21351 | T14: 22694 | U14: -1343
L15: 2009 | M15: 9695 | N15: 10298 | O15: -603 | P15: 11872 | Q15: 12641 | R15: -769 | S15: 21567 | T15: 22939 | U15: -1372
L16: 2010 | M16: 10425 | N16: 11126 | O16: -701 | P16: 12147 | Q16: 13203 | R16: -1056 | S16: 22572 | T16: 24329 | U16: -1757
L17: 2011 | M17: 10411 | N17: 11173 | O17: -762 | P17: 12282 | Q17: 13364 | R17: -1082 | S17: 22693 | T17: 24537 | U17: -1844
L18: 2012 | M18: 9891 | N18: 10509 | O18: -618 | P18: 11524 | Q18: 12549 | R18: -1025 | S18: 21415 | T18: 23058 | U18: =O18+R18 -> -1643
L19: 2013 | M19: 10632 | N19: 11578 | O19: -946 | P19: 12180 | Q19: 13338 | R19: -1158 | S19: 22812 | T19: 24916 | U19: =O19+R19 -> -2104
L20: 2014 | M20: 9970 | N20: 10649 | O20: -679 | P20: 11621 | Q20: 12643 | R20: -1022 | S20: 21591 | T20: 23292 | U20: =O20+R20 -> -1701
L21: 2015 | M21: 9390 | N21: 10118 | O21: -728 | P21: 11028 | Q21: 12027 | R21: -999 | S21: 20418 | T21: 22145 | U21: -1727
L22: 2016 | M22: 9363 | N22: 10085 | O22: -722 | P22: 10695 | Q22: 11668 | R22: -973 | S22: 20058 | T22: 21753 | U22: -1695
L23: 2017 | M23: 9649 | N23: 10569 | O23: -920 | P23: 11209 | Q23: 12250 | R23: -1041 | S23: 20858 | T23: 22819 | U23: -1961
L24: 2018 | M24: 10806 | N24: 11805 | O24: -999 | P24: 12358 | Q24: 13522 | R24: -1164 | S24: 23164 | T24: 25327 | U24: -2163
L25: 2019 | M25: 11088 | N25: 12254 | O25: -1166 | P25: 12319 | Q25: 13977 | R25: -1658 | S25: 23407 | T25: 26231 | U25: -2824
L26: 2020 | M26: 9184 | N26: 9997 | O26: -813 | P26: 10486 | Q26: 11485 | R26: -999 | S26: 19670 | T26: 21482 | U26: -1812
L27: 2021 | M27: 10250 | N27: 11340 | O27: -1090 | P27: 11807 | Q27: 12999 | R27: -1192 | S27: 22057 | T27: 24339 | U27: -2282

Sheet Małopolskie
A1: MIGRACJE WEWNĘTRZNE LUDNOŚCI NA POBYT STAŁY WEDŁUG PŁCI MIGRANTÓW W LATACH 1998-2021
L2: Małopolskie
L3: Lata | M3: Napływ - mężczyźni | N3: Odpływ - mężczyźni | O3: Saldo migracji - mężczyźni | P3: Napływ - kobiety | Q3: Odpływ - kobiety | R3: Saldo migracji - kobiety | S3: Napływ - ogółem | T3: Odpływ - ogółem | U3: Saldo migracji - ogółem
L4: 1998 | M4: 14442 | N4: 13936 | O4: =M4-N4 -> 506 | P4: 15884 | Q4: 14942 | R4: =P4-Q4 -> 942 | S4: =M4+P4 -> 30326 | T4: =N4+Q4 -> 28878 | U4: =O4+R4 -> 1448
L5: 1999 | M5: 15017 | N5: 14224 | O5: 793 | P5: 17067 | Q5: 15916 | R5: 1151 | S5: 32084 | T5: 30140 | U5: 1944
L6: 2000 | M6: 13342 | N6: 12368 | O6: 974 | P6: 15466 | Q6: 14064 | R6: 1402 | S6: 28808 | T6: 26432 | U6: 2376
L7: 2001 | M7: 12540 | N7: 11455 | O7: 1085 | P7: 14748 | Q7: 13189 | R7: 1559 | S7: 27288 | T7: 24644 | U7: 2644
L8: 2002 | M8: 13702 | N8: 12404 | O8: 1298 | P8: 15701 | Q8: 14013 | R8: 1688 | S8: 29403 | T8: 26417 | U8: 2986
L9: 2003 | M9: 15384 | N9: 14011 | O9: 1373 | P9: 17910 | Q9: 15985 | R9: 1925 | S9: 33294 | T9: 29996 | U9: 3298
L10: 2004 | M10: 15083 | N10: 13728 | O10: 1355 | P10: 17565 | Q10: 15665 | R10: 1900 | S10: 32648 | T10: 29393 | U10: 3255
L11: 2005 | M11: 14186 | N11: 13001 | O11: 1185 | P11: 16910 | Q11: 14942 | R11: 1968 | S11: 31096 | T11: 27943 | U11: 3153
L12: 2006 | M12: 15927 | N12: 14530 | O12: 1397 | P12: 18298 | Q12: 16386 | R12: 1912 | S12: 34225 | T12: 30916 | U12: 3309
L13: 2007 | M13: 17093 | N13: 15615 | O13: 1478 | P13: 19449 | Q13: 17604 | R13: 1845 | S13: 36542 | T13: 33219 | U13: 3323
L14: 2008 | M14: 12942 | N14: 11780 | O14: 1162 | P14: 15929 | Q14: 14290 | R14: 1639 | S14: 28871 | T14: 26070 | U14: 2801
L15: 2009 | M15: 13614 | N15: 12252 | O15: 1362 | P15: 17124 | Q15: 14843 | R15: 2281 | S15: 30738 | T15: 27095 | U15: 3643
L16: 2010 | M16: 14292 | N16: 12808 | O16: 1484 | P16: 17549 | Q16: 15360 | R16: 2189 | S16: 31841 | T16: 28168 | U16: 3673
L17: 2011 | M17: 14489 | N17: 12935 | O17: 1554 | P17: 17697 | Q17: 15468 | R17: 2229 | S17: 32186 | T17: 28403 | U17: 3783
L18: 2012 | M18: 13633 | N18: 12255 | O18: 1378 | P18: 16396 | Q18: 14420 | R18: 1976 | S18: 30029 | T18: 26675 | U18: =O18+R18 -> 3354
L19: 2013 | M19: 15674 | N19: 13959 | O19: 1715 | P19: 17901 | Q19: 15841 | R19: 2060 | S19: 33575 | T19: 29800 | U19: =O19+R19 -> 3775
L20: 2014 | M20: 14344 | N20: 12855 | O20: 1489 | P20: 17046 | Q20: 14963 | R20: 2083 | S20: 31390 | T20: 27818 | U20: =O20+R20 -> 3572
L21: 2015 | M21: 14412 | N21: 12661 | O21: 1751 | P21: 16352 | Q21: 14333 | R21: 2019 | S21: 30764 | T21: 26994 | U21: 3770
L22: 2016 | M22: 13847 | N22: 12316 | O22: 1531 | P22: 15740 | Q22: 13895 | R22: 1845 | S22: 29587 | T22: 26211 | U22: 3376
L23: 2017 | M23: 15086 | N23: 13472 | O23: 1614 | P23: 17208 | Q23: 15062 | R23: 2146 | S23: 32294 | T23: 28534 | U23: 3760
L24: 2018 | M24: 16959 | N24: 14768 | O24: 2191 | P24: 19480 | Q24: 16829 | R24: 2651 | S24: 36439 | T24: 31597 | U24: 4842
L25: 2019 | M25: 18266 | N25: 15677 | O25: 2589 | P25: 21241 | Q25: 17916 | R25: 3325 | S25: 39507 | T25: 33593 | U25: 5914
L26: 2020 | M26: 14697 | N26: 13144 | O26: 1553 | P26: 16261 | Q26: 14402 | R26: 1859 | S26: 30958 | T26: 27546 | U26: 3412
L27: 2021 | M27: 17156 | N27: 15200 | O27: 1956 | P27: 19030 | Q27: 16874 | R27: 2156 | S27: 36186 | T27: 32074 | U27: 4112

Sheet Mazowieckie
A1: MIGRACJE WEWNĘTRZNE LUDNOŚCI NA POBYT STAŁY WEDŁUG PŁCI MIGRANTÓW W LATACH 1998-2021
L2: Mazowieckie
L3: Lata | M3: Napływ - mężczyźni | N3: Odpływ - mężczyźni | O3: Saldo migracji - mężczyźni | P3: Napływ - kobiety | Q3: Odpływ - kobiety | R3: Saldo migracji - kobiety | S3: Napływ - ogółem | T3: Odpływ - ogółem | U3: Saldo migracji - ogółem
L4: 1998 | M4: 27778 | N4: 25769 | O4: =M4-N4 -> 2009 | P4: 31771 | Q4: 28853 | R4: =P4-Q4 -> 2918 | S4: =M4+P4 -> 59549 | T4: =N4+Q4 -> 54622 | U4: =O4+R4 -> 4927
L5: 1999 | M5: 28281 | N5: 25324 | O5: 2957 | P5: 33215 | Q5: 29445 | R5: 3770 | S5: 61496 | T5: 54769 | U5: 6727
L6: 2000 | M6: 27614 | N6: 23570 | O6: 4044 | P6: 31756 | Q6: 26975 | R6: 4781 | S6: 59370 | T6: 50545 | U6: 8825
L7: 2001 | M7: 26287 | N7: 22047 | O7: 4240 | P7: 30617 | Q7: 24991 | R7: 5626 | S7: 56904 | T7: 47038 | U7: 9866
L8: 2002 | M8: 29415 | N8: 24213 | O8: 5202 | P8: 34644 | Q8: 27680 | R8: 6964 | S8: 64059 | T8: 51893 | U8: 12166
L9: 2003 | M9: 31426 | N9: 25719 | O9: 5707 | P9: 37701 | Q9: 30080 | R9: 7621 | S9: 69127 | T9: 55799 | U9: 13328
L10: 2004 | M10: 32091 | N10: 26322 | O10: 5769 | P10: 37829 | Q10: 30272 | R10: 7557 | S10: 69920 | T10: 56594 | U10: 13326
L11: 2005 | M11: 31801 | N11: 25643 | O11: 6158 | P11: 38148 | Q11: 29786 | R11: 8362 | S11: 69949 | T11: 55429 | U11: 14520
L12: 2006 | M12: 36464 | N12: 29381 | O12: 7083 | P12: 43437 | Q12: 34252 | R12: 9185 | S12: 79901 | T12: 63633 | U12: 16268
L13: 2007 | M13: 38617 | N13: 32180 | O13: 6437 | P13: 45827 | Q13: 37318 | R13: 8509 | S13: 84444 | T13: 69498 | U13: 14946
L14: 2008 | M14: 29072 | N14: 24359 | O14: 4713 | P14: 35727 | Q14: 29321 | R14: 6406 | S14: 64799 | T14: 53680 | U14: 11119
L15: 2009 | M15: 28323 | N15: 23435 | O15: 4888 | P15: 35614 | Q15: 29031 | R15: 6583 | S15: 63937 | T15: 52466 | U15: 11471
L16: 2010 | M16: 31053 | N16: 25749 | O16: 5304 | P16: 38562 | Q16: 31179 | R16: 7383 | S16: 69615 | T16: 56928 | U16: 12687
L17: 2011 | M17: 30802 | N17: 24787 | O17: 6015 | P17: 37799 | Q17: 30114 | R17: 7685 | S17: 68601 | T17: 54901 | U17: 13700
L18: 2012 | M18: 29149 | N18: 23591 | O18: 5558 | P18: 35507 | Q18: 28263 | R18: 7244 | S18: 64656 | T18: 51854 | U18: =O18+R18 -> 12802
L19: 2013 | M19: 31656 | N19: 25583 | O19: 6073 | P19: 37326 | Q19: 29942 | R19: 7384 | S19: 68982 | T19: 55525 | U19: =O19+R19 -> 13457
L20: 2014 | M20: 30858 | N20: 25070 | O20: 5788 | P20: 37094 | Q20: 29741 | R20: 7353 | S20: 67952 | T20: 54811 | U20: =O20+R20 -> 13141
L21: 2015 | M21: 28992 | N21: 23343 | O21: 5649 | P21: 34129 | Q21: 27393 | R21: 6736 | S21: 63121 | T21: 50736 | U21: 12385
L22: 2016 | M22: 27230 | N22: 22265 | O22: 4965 | P22: 32431 | Q22: 26229 | R22: 6202 | S22: 59661 | T22: 48494 | U22: 11167
L23: 2017 | M23: 29493 | N23: 24150 | O23: 5343 | P23: 34444 | Q23: 27758 | R23: 6686 | S23: 63937 | T23: 51908 | U23: 12029
L24: 2018 | M24: 34054 | N24: 27323 | O24: 6731 | P24: 39940 | Q24: 31985 | R24: 7955 | S24: 73994 | T24: 59308 | U24: 14686
L25: 2019 | M25: 36210 | N25: 29161 | O25: 7049 | P25: 42356 | Q25: 33628 | R25: 8728 | S25: 78566 | T25: 62789 | U25: 15777
L26: 2020 | M26: 29083 | N26: 24169 | O26: 4914 | P26: 33325 | Q26: 27791 | R26: 5534 | S26: 62408 | T26: 51960 | U26: 10448
L27: 2021 | M27: 32842 | N27: 27769 | O27: 5073 | P27: 37019 | Q27: 31258 | R27: 5761 | S27: 69861 | T27: 59027 | U27: 10834

Sheet Opolskie
A1: MIGRACJE WEWNĘTRZNE LUDNOŚCI NA POBYT STAŁY WEDŁUG PŁCI MIGRANTÓW W LATACH 1998-2021
L2: Opolskie
L3: Lata | M3: Napływ - mężczyźni | N3: Odpływ - mężczyźni | O3: Saldo migracji - mężczyźni | P3: Napływ - kobiety | Q3: Odpływ - kobiety | R3: Saldo migracji - kobiety | S3: Napływ - ogółem | T3: Odpływ - ogółem | U3: Saldo migracji - ogółem
L4: 1998 | M4: 5527 | N4: 5560 | O4: =M4-N4 -> -33 | P4: 5957 | Q4: 6029 | R4: =P4-Q4 -> -72 | S4: =M4+P4 -> 11484 | T4: =N4+Q4 -> 11589 | U4: =O4+R4 -> -105
L5: 1999 | M5: 5761 | N5: 5765 | O5: -4 | P5: 6249 | Q5: 6267 | R5: -18 | S5: 12010 | T5: 12032 | U5: -22
L6: 2000 | M6: 5061 | N6: 5106 | O6: -45 | P6: 5478 | Q6: 5521 | R6: -43 | S6: 10539 | T6: 10627 | U6: -88
L7: 2001 | M7: 4733 | N7: 4831 | O7: -98 | P7: 5222 | Q7: 5371 | R7: -149 | S7: 9955 | T7: 10202 | U7: -247
L8: 2002 | M8: 4731 | N8: 5042 | O8: -311 | P8: 5101 | Q8: 5472 | R8: -371 | S8: 9832 | T8: 10514 | U8: -682
L9: 2003 | M9: 4744 | N9: 5055 | O9: -311 | P9: 5372 | Q9: 5601 | R9: -229 | S9: 10116 | T9: 10656 | U9: -540
L10: 2004 | M10: 4952 | N10: 5209 | O10: -257 | P10: 5521 | Q10: 5685 | R10: -164 | S10: 10473 | T10: 10894 | U10: -421
L11: 2005 | M11: 4517 | N11: 4829 | O11: -312 | P11: 5010 | Q11: 5331 | R11: -321 | S11: 9527 | T11: 10160 | U11: -633
L12: 2006 | M12: 5205 | N12: 5711 | O12: -506 | P12: 5935 | Q12: 6266 | R12: -331 | S12: 11140 | T12: 11977 | U12: -837
L13: 2007 | M13: 5616 | N13: 6041 | O13: -425 | P13: 6208 | Q13: 6528 | R13: -320 | S13: 11824 | T13: 12569 | U13: -745
L14: 2008 | M14: 4706 | N14: 4931 | O14: -225 | P14: 5481 | Q14: 5695 | R14: -214 | S14: 10187 | T14: 10626 | U14: -439
L15: 2009 | M15: 4642 | N15: 4936 | O15: -294 | P15: 5486 | Q15: 5808 | R15: -322 | S15: 10128 | T15: 10744 | U15: -616
L16: 2010 | M16: 4911 | N16: 5220 | O16: -309 | P16: 5517 | Q16: 5879 | R16: -362 | S16: 10428 | T16: 11099 | U16: -671
L17: 2011 | M17: 4690 | N17: 5021 | O17: -331 | P17: 5522 | Q17: 5855 | R17: -333 | S17: 10212 | T17: 10876 | U17: -664
L18: 2012 | M18: 4595 | N18: 4824 | O18: -229 | P18: 5374 | Q18: 5582 | R18: -208 | S18: 9969 | T18: 10406 | U18: =O18+R18 -> -437
L19: 2013 | M19: 4928 | N19: 5397 | O19: -469 | P19: 5455 | Q19: 5878 | R19: -423 | S19: 10383 | T19: 11275 | U19: =O19+R19 -> -892
L20: 2014 | M20: 4674 | N20: 5069 | O20: -395 | P20: 5188 | Q20: 5484 | R20: -296 | S20: 9862 | T20: 10553 | U20: =O20+R20 -> -691
L21: 2015 | M21: 4341 | N21: 4774 | O21: -433 | P21: 4957 | Q21: 5334 | R21: -377 | S21: 9298 | T21: 10108 | U21: -810
L22: 2016 | M22: 4248 | N22: 4593 | O22: -345 | P22: 4759 | Q22: 5140 | R22: -381 | S22: 9007 | T22: 9733 | U22: -726
L23: 2017 | M23: 4444 | N23: 4849 | O23: -405 | P23: 4945 | Q23: 5285 | R23: -340 | S23: 9389 | T23: 10134 | U23: -745
L24: 2018 | M24: 5029 | N24: 5417 | O24: -388 | P24: 5571 | Q24: 5874 | R24: -303 | S24: 10600 | T24: 11291 | U24: -691
L25: 2019 | M25: 4959 | N25: 5415 | O25: -456 | P25: 5544 | Q25: 6095 | R25: -551 | S25: 10503 | T25: 11510 | U25: -1007
L26: 2020 | M26: 4352 | N26: 4734 | O26: -382 | P26: 4858 | Q26: 5223 | R26: -365 | S26: 9210 | T26: 9957 | U26: -747
L27: 2021 | M27: 4799 | N27: 5208 | O27: -409 | P27: 5310 | Q27: 5665 | R27: -355 | S27: 10109 | T27: 10873 | U27: -764

Sheet Podkarpackie
A1: MIGRACJE WEWNĘTRZNE LUDNOŚCI NA POBYT STAŁY WEDŁUG PŁCI MIGRANTÓW W LATACH 1998-2021
L2: Podkarpackie
L3: Lata | M3: Napływ - mężczyźni | N3: Odpływ - mężczyźni | O3: Saldo migracji - mężczyźni | P3: Napływ - kobiety | Q3: Odpływ - kobiety | R3: Saldo migracji - kobiety | S3: Napływ - ogółem | T3: Odpływ - ogółem | U3: Saldo migracji - ogółem
L4: 1998 | M4: 10442 | N4: 11081 | O4: =M4-N4 -> -639 | P4: 11197 | Q4: 11971 | R4: =P4-Q4 -> -774 | S4: =M4+P4 -> 21639 | T4: =N4+Q4 -> 23052 | U4: =O4+R4 -> -1413
L5: 1999 | M5: 10055 | N5: 10650 | O5: -595 | P5: 11105 | Q5: 12038 | R5: -933 | S5: 21160 | T5: 22688 | U5: -1528
L6: 2000 | M6: 9127 | N6: 9845 | O6: -718 | P6: 10020 | Q6: 11032 | R6: -1012 | S6: 19147 | T6: 20877 | U6: -1730
L7: 2001 | M7: 8910 | N7: 9708 | O7: -798 | P7: 10041 | Q7: 11034 | R7: -993 | S7: 18951 | T7: 20742 | U7: -1791
L8: 2002 | M8: 9620 | N8: 10726 | O8: -1106 | P8: 10436 | Q8: 11761 | R8: -1325 | S8: 20056 | T8: 22487 | U8: -2431
L9: 2003 | M9: 10383 | N9: 11250 | O9: -867 | P9: 11278 | Q9: 12603 | R9: -1325 | S9: 21661 | T9: 23853 | U9: -2192
L10: 2004 | M10: 10119 | N10: 10989 | O10: -870 | P10: 11064 | Q10: 12267 | R10: -1203 | S10: 21183 | T10: 23256 | U10: -2073
L11: 2005 | M11: 9240 | N11: 10065 | O11: -825 | P11: 10339 | Q11: 11515 | R11: -1176 | S11: 19579 | T11: 21580 | U11: -2001
L12: 2006 | M12: 9789 | N12: 10575 | O12: -786 | P12: 11038 | Q12: 12159 | R12: -1121 | S12: 20827 | T12: 22734 | U12: -1907
L13: 2007 | M13: 12270 | N13: 13276 | O13: -1006 | P13: 13036 | Q13: 14199 | R13: -1163 | S13: 25306 | T13: 27475 | U13: -2169
L14: 2008 | M14: 8183 | N14: 8743 | O14: -560 | P14: 9534 | Q14: 10513 | R14: -979 | S14: 17717 | T14: 19256 | U14: -1539
L15: 2009 | M15: 8113 | N15: 8884 | O15: -771 | P15: 9503 | Q15: 10718 | R15: -1215 | S15: 17616 | T15: 19602 | U15: -1986
L16: 2010 | M16: 8679 | N16: 9450 | O16: -771 | P16: 9900 | Q16: 11102 | R16: -1202 | S16: 18579 | T16: 20552 | U16: -1973
L17: 2011 | M17: 8561 | N17: 9456 | O17: -895 | P17: 10101 | Q17: 11418 | R17: -1317 | S17: 18662 | T17: 20874 | U17: -2212
L18: 2012 | M18: 8010 | N18: 8828 | O18: -818 | P18: 9206 | Q18: 10335 | R18: -1129 | S18: 17216 | T18: 19163 | U18: =O18+R18 -> -1947
L19: 2013 | M19: 8959 | N19: 9902 | O19: -943 | P19: 10101 | Q19: 11431 | R19: -1330 | S19: 19060 | T19: 21333 | U19: =O19+R19 -> -2273
L20: 2014 | M20: 8567 | N20: 9353 | O20: -786 | P20: 9731 | Q20: 10886 | R20: -1155 | S20: 18298 | T20: 20239 | U20: =O20+R20 -> -1941
L21: 2015 | M21: 8431 | N21: 9482 | O21: -1051 | P21: 9531 | Q21: 10880 | R21: -1349 | S21: 17962 | T21: 20362 | U21: -2400
L22: 2016 | M22: 8502 | N22: 9284 | O22: -782 | P22: 9508 | Q22: 10773 | R22: -1265 | S22: 18010 | T22: 20057 | U22: -2047
L23: 2017 | M23: 9400 | N23: 10273 | O23: -873 | P23: 10284 | Q23: 11551 | R23: -1267 | S23: 19684 | T23: 21824 | U23: -2140
L24: 2018 | M24: 9875 | N24: 11219 | O24: -1344 | P24: 10801 | Q24: 12576 | R24: -1775 | S24: 20676 | T24: 23795 | U24: -3119
L25: 2019 | M25: 10488 | N25: 11986 | O25: -1498 | P25: 11685 | Q25: 13649 | R25: -1964 | S25: 22173 | T25: 25635 | U25: -3462
L26: 2020 | M26: 8774 | N26: 9684 | O26: -910 | P26: 9562 | Q26: 10878 | R26: -1316 | S26: 18336 | T26: 20562 | U26: -2226
L27: 2021 | M27: 9996 | N27: 10888 | O27: -892 | P27: 10544 | Q27: 11849 | R27: -1305 | S27: 20540 | T27: 22737 | U27: -2197

Sheet Podlaskie
A1: MIGRACJE WEWNĘTRZNE LUDNOŚCI NA POBYT STAŁY WEDŁUG PŁCI MIGRANTÓW W LATACH 1998-2021
L2: Podlaskie
L3: Lata | M3: Napływ - mężczyźni | N3: Odpływ - mężczyźni | O3: Saldo migracji - mężczyźni | P3: Napływ - kobiety | Q3: Odpływ - kobiety | R3: Saldo migracji - kobiety | S3: Napływ - ogółem | T3: Odpływ - ogółem | U3: Saldo migracji - ogółem
L4: 1998 | M4: 6869 | N4: 7163 | O4: =M4-N4 -> -294 | P4: 8189 | Q4: 8635 | R4: =P4-Q4 -> -446 | S4: =M4+P4 -> 15058 | T4: =N4+Q4 -> 15798 | U4: =O4+R4 -> -740
L5: 1999 | M5: 6970 | N5: 7288 | O5: -318 | P5: 8566 | Q5: 9130 | R5: -564 | S5: 15536 | T5: 16418 | U5: -882
L6: 2000 | M6: 6232 | N6: 6802 | O6: -570 | P6: 7455 | Q6: 8140 | R6: -685 | S6: 13687 | T6: 14942 | U6: -1255
L7: 2001 | M7: 5681 | N7: 6120 | O7: -439 | P7: 6907 | Q7: 7568 | R7: -661 | S7: 12588 | T7: 13688 | U7: -1100
L8: 2002 | M8: 6046 | N8: 6653 | O8: -607 | P8: 7245 | Q8: 8119 | R8: -874 | S8: 13291 | T8: 14772 | U8: -1481
L9: 2003 | M9: 6077 | N9: 6782 | O9: -705 | P9: 7208 | Q9: 8092 | R9: -884 | S9: 13285 | T9: 14874 | U9: -1589
L10: 2004 | M10: 5844 | N10: 6578 | O10: -734 | P10: 6990 | Q10: 7764 | R10: -774 | S10: 12834 | T10: 14342 | U10: -1508
L11: 2005 | M11: 5482 | N11: 6264 | O11: -782 | P11: 6680 | Q11: 7736 | R11: -1056 | S11: 12162 | T11: 14000 | U11: -1838
L12: 2006 | M12: 6246 | N12: 7066 | O12: -820 | P12: 7492 | Q12: 8666 | R12: -1174 | S12: 13738 | T12: 15732 | U12: -1994
L13: 2007 | M13: 6262 | N13: 7189 | O13: -927 | P13: 7744 | Q13: 8999 | R13: -1255 | S13: 14006 | T13: 16188 | U13: -2182
L14: 2008 | M14: 4717 | N14: 5298 | O14: -581 | P14: 6301 | Q14: 7160 | R14: -859 | S14: 11018 | T14: 12458 | U14: -1440
L15: 2009 | M15: 4737 | N15: 5446 | O15: -709 | P15: 6236 | Q15: 7179 | R15: -943 | S15: 10973 | T15: 12625 | U15: -1652
L16: 2010 | M16: 5111 | N16: 5757 | O16: -646 | P16: 6620 | Q16: 7590 | R16: -970 | S16: 11731 | T16: 13347 | U16: -1616
L17: 2011 | M17: 5340 | N17: 6142 | O17: -802 | P17: 6522 | Q17: 7618 | R17: -1096 | S17: 11862 | T17: 13760 | U17: -1898
L18: 2012 | M18: 5020 | N18: 5753 | O18: -733 | P18: 6289 | Q18: 7301 | R18: -1012 | S18: 11309 | T18: 13054 | U18: =O18+R18 -> -1745
L19: 2013 | M19: 5042 | N19: 5948 | O19: -906 | P19: 6237 | Q19: 7384 | R19: -1147 | S19: 11279 | T19: 13332 | U19: =O19+R19 -> -2053
L20: 2014 | M20: 5026 | N20: 5819 | O20: -793 | P20: 6268 | Q20: 7387 | R20: -1119 | S20: 11294 | T20: 13206 | U20: =O20+R20 -> -1912
L21: 2015 | M21: 4666 | N21: 5440 | O21: -774 | P21: 5753 | Q21: 6886 | R21: -1133 | S21: 10419 | T21: 12326 | U21: -1907
L22: 2016 | M22: 4892 | N22: 5614 | O22: -722 | P22: 6014 | Q22: 6857 | R22: -843 | S22: 10906 | T22: 12471 | U22: -1565
L23: 2017 | M23: 5138 | N23: 5894 | O23: -756 | P23: 6089 | Q23: 7199 | R23: -1110 | S23: 11227 | T23: 13093 | U23: -1866
L24: 2018 | M24: 5852 | N24: 6789 | O24: -937 | P24: 6861 | Q24: 8205 | R24: -1344 | S24: 12713 | T24: 14994 | U24: -2281
L25: 2019 | M25: 5940 | N25: 7064 | O25: -1124 | P25: 6998 | Q25: 8333 | R25: -1335 | S25: 12938 | T25: 15397 | U25: -2459
L26: 2020 | M26: 4961 | N26: 5735 | O26: -774 | P26: 5957 | Q26: 6885 | R26: -928 | S26: 10918 | T26: 12620 | U26: -1702
L27: 2021 | M27: 5702 | N27: 6381 | O27: -679 | P27: 6499 | Q27: 7477 | R27: -978 | S27: 12201 | T27: 13858 | U27: -1657

Sheet Pomorskie
A1: MIGRACJE WEWNĘTRZNE LUDNOŚCI NA POBYT STAŁY WEDŁUG PŁCI MIGRANTÓW W LATACH 1998-2021
L2: Pomorskie
L3: Lata | M3: Napływ - mężczyźni | N3: Odpływ - mężczyźni | O3: Saldo migracji - mężczyźni | P3: Napływ - kobiety | Q3: Odpływ - kobiety | R3: Saldo migracji - kobiety | S3: Napływ - ogółem | T3: Odpływ - ogółem | U3: Saldo migracji - ogółem
L4: 1998 | M4: 12547 | N4: 11910 | O4: =M4-N4 -> 637 | P4: 13467 | Q4: 12771 | R4: =P4-Q4 -> 696 | S4: =M4+P4 -> 26014 | T4: =N4+Q4 -> 24681 | U4: =O4+R4 -> 1333
L5: 1999 | M5: 13264 | N5: 12221 | O5: 1043 | P5: 14542 | Q5: 13465 | R5: 1077 | S5: 27806 | T5: 25686 | U5: 2120
L6: 2000 | M6: 12156 | N6: 11474 | O6: 682 | P6: 13437 | Q6: 12468 | R6: 969 | S6: 25593 | T6: 23942 | U6: 1651
L7: 2001 | M7: 11602 | N7: 10512 | O7: 1090 | P7: 12823 | Q7: 11839 | R7: 984 | S7: 24425 | T7: 22351 | U7: 2074
L8: 2002 | M8: 12764 | N8: 11817 | O8: 947 | P8: 14114 | Q8: 13079 | R8: 1035 | S8: 26878 | T8: 24896 | U8: 1982
L9: 2003 | M9: 14021 | N9: 13067 | O9: 954 | P9: 15858 | Q9: 14812 | R9: 1046 | S9: 29879 | T9: 27879 | U9: 2000
L10: 2004 | M10: 14820 | N10: 13726 | O10: 1094 | P10: 16149 | Q10: 14927 | R10: 1222 | S10: 30969 | T10: 28653 | U10: 2316
L11: 2005 | M11: 14110 | N11: 13148 | O11: 962 | P11: 16083 | Q11: 14775 | R11: 1308 | S11: 30193 | T11: 27923 | U11: 2270
L12: 2006 | M12: 16064 | N12: 14955 | O12: 1109 | P12: 18043 | Q12: 16811 | R12: 1232 | S12: 34107 | T12: 31766 | U12: 2341
L13: 2007 | M13: 17574 | N13: 16366 | O13: 1208 | P13: 19270 | Q13: 17892 | R13: 1378 | S13: 36844 | T13: 34258 | U13: 2586
L14: 2008 | M14: 13625 | N14: 12708 | O14: 917 | P14: 16015 | Q14: 14781 | R14: 1234 | S14: 29640 | T14: 27489 | U14: 2151
L15: 2009 | M15: 13551 | N15: 12455 | O15: 1096 | P15: 15958 | Q15: 14472 | R15: 1486 | S15: 29509 | T15: 26927 | U15: 2582
L16: 2010 | M16: 14298 | N16: 13086 | O16: 1212 | P16: 16363 | Q16: 14826 | R16: 1537 | S16: 30661 | T16: 27912 | U16: 2749
L17: 2011 | M17: 13991 | N17: 12815 | O17: 1176 | P17: 16036 | Q17: 14594 | R17: 1442 | S17: 30027 | T17: 27409 | U17: 2618
L18: 2012 | M18: 12658 | N18: 11561 | O18: 1097 | P18: 14597 | Q18: 13257 | R18: 1340 | S18: 27255 | T18: 24818 | U18: =O18+R18 -> 2437
L19: 2013 | M19: 14636 | N19: 13130 | O19: 1506 | P19: 16164 | Q19: 14430 | R19: 1734 | S19: 30800 | T19: 27560 | U19: =O19+R19 -> 3240
L20: 2014 | M20: 13646 | N20: 12328 | O20: 1318 | P20: 15598 | Q20: 13857 | R20: 1741 | S20: 29244 | T20: 26185 | U20: =O20+R20 -> 3059
L21: 2015 | M21: 13618 | N21: 12211 | O21: 1407 | P21: 15338 | Q21: 13401 | R21: 1937 | S21: 28956 | T21: 25612 | U21: 3344
L22: 2016 | M22: 13208 | N22: 11724 | O22: 1484 | P22: 15130 | Q22: 13129 | R22: 2001 | S22: 28338 | T22: 24853 | U22: 3485
L23: 2017 | M23: 13977 | N23: 12418 | O23: 1559 | P23: 15975 | Q23: 13909 | R23: 2066 | S23: 29952 | T23: 26327 | U23: 3625
L24: 2018 | M24: 16210 | N24: 14077 | O24: 2133 | P24: 18609 | Q24: 15822 | R24: 2787 | S24: 34819 | T24: 29899 | U24: 4920
L25: 2019 | M25: 16910 | N25: 14216 | O25: 2694 | P25: 18993 | Q25: 15734 | R25: 3259 | S25: 35903 | T25: 29950 | U25: 5953
L26: 2020 | M26: 13464 | N26: 11793 | O26: 1671 | P26: 15120 | Q26: 12966 | R26: 2154 | S26: 28584 | T26: 24759 | U26: 3825
L27: 2021 | M27: 15191 | N27: 13189 | O27: 2002 | P27: 16933 | Q27: 14344 | R27: 2589 | S27: 32124 | T27: 27533 | U27: 4591

Sheet Śląskie
A1: MIGRACJE WEWNĘTRZNE LUDNOŚCI NA POBYT STAŁY WEDŁUG PŁCI MIGRANTÓW W LATACH 1998-2021
L2: Śląskie
L3: Lata | M3: Napływ - mężczyźni | N3: Odpływ - mężczyźni | O3: Saldo migracji - mężczyźni | P3: Napływ - kobiety | Q3: Odpływ - kobiety | R3: Saldo migracji - kobiety | S3: Napływ - ogółem | T3: Odpływ - ogółem | U3: Saldo migracji - ogółem
L4: 1998 | M4: 22951 | N4: 22129 | O4: =M4-N4 -> 822 | P4: 23635 | Q4: 23080 | R4: =P4-Q4 -> 555 | S4: =M4+P4 -> 46586 | T4: =N4+Q4 -> 45209 | U4: =O4+R4 -> 1377
L5: 1999 | M5: 22717 | N5: 23016 | O5: -299 | P5: 24457 | Q5: 24552 | R5: -95 | S5: 47174 | T5: 47568 | U5: -394
L6: 2000 | M6: 20551 | N6: 21424 | O6: -873 | P6: 22208 | Q6: 22987 | R6: -779 | S6: 42759 | T6: 44411 | U6: -1652
L7: 2001 | M7: 17204 | N7: 18301 | O7: -1097 | P7: 18728 | Q7: 19984 | R7: -1256 | S7: 35932 | T7: 38285 | U7: -2353
L8: 2002 | M8: 20443 | N8: 21302 | O8: -859 | P8: 22057 | Q8: 22837 | R8: -780 | S8: 42500 | T8: 44139 | U8: -1639
L9: 2003 | M9: 21659 | N9: 23168 | O9: -1509 | P9: 23934 | Q9: 25334 | R9: -1400 | S9: 45593 | T9: 48502 | U9: -2909
L10: 2004 | M10: 21194 | N10: 23043 | O10: -1849 | P10: 23406 | Q10: 25140 | R10: -1734 | S10: 44600 | T10: 48183 | U10: -3583
L11: 2005 | M11: 20943 | N11: 22347 | O11: -1404 | P11: 23365 | Q11: 25036 | R11: -1671 | S11: 44308 | T11: 47383 | U11: -3075
L12: 2006 | M12: 22414 | N12: 24199 | O12: -1785 | P12: 24304 | Q12: 26187 | R12: -1883 | S12: 46718 | T12: 50386 | U12: -3668
L13: 2007 | M13: 23991 | N13: 25807 | O13: -1816 | P13: 25966 | Q13: 27728 | R13: -1762 | S13: 49957 | T13: 53535 | U13: -3578
L14: 2008 | M14: 19417 | N14: 20946 | O14: -1529 | P14: 22419 | Q14: 23807 | R14: -1388 | S14: 41836 | T14: 44753 | U14: -2917
L15: 2009 | M15: 19479 | N15: 21027 | O15: -1548 | P15: 22979 | Q15: 24594 | R15: -1615 | S15: 42458 | T15: 45621 | U15: -3163
L16: 2010 | M16: 20795 | N16: 22460 | O16: -1665 | P16: 23390 | Q16: 24919 | R16: -1529 | S16: 44185 | T16: 47379 | U16: -3194
L17: 2011 | M17: 20562 | N17: 22489 | O17: -1927 | P17: 23171 | Q17: 24896 | R17: -1725 | S17: 43733 | T17: 47385 | U17: -3652
L18: 2012 | M18: 19830 | N18: 21572 | O18: -1742 | P18: 22219 | Q18: 23775 | R18: -1556 | S18: 42049 | T18: 45347 | U18: =O18+R18 -> -3298
L19: 2013 | M19: 21615 | N19: 23603 | O19: -1988 | P19: 23479 | Q19: 25371 | R19: -1892 | S19: 45094 | T19: 48974 | U19: =O19+R19 -> -3880
L20: 2014 | M20: 19771 | N20: 21580 | O20: -1809 | P20: 22010 | Q20: 23834 | R20: -1824 | S20: 41781 | T20: 45414 | U20: =O20+R20 -> -3633
L21: 2015 | M21: 18579 | N21: 20495 | O21: -1916 | P21: 20845 | Q21: 22378 | R21: -1533 | S21: 39424 | T21: 42873 | U21: -3449
L22: 2016 | M22: 18044 | N22: 19728 | O22: -1684 | P22: 20370 | Q22: 22114 | R22: -1744 | S22: 38414 | T22: 41842 | U22: -3428
L23: 2017 | M23: 19136 | N23: 20882 | O23: -1746 | P23: 21267 | Q23: 22781 | R23: -1514 | S23: 40403 | T23: 43663 | U23: -3260
L24: 2018 | M24: 20841 | N24: 23085 | O24: -2244 | P24: 23004 | Q24: 24991 | R24: -1987 | S24: 43845 | T24: 48076 | U24: -4231
L25: 2019 | M25: 21359 | N25: 23645 | O25: -2286 | P25: 23661 | Q25: 25650 | R25: -1989 | S25: 45020 | T25: 49295 | U25: -4275
L26: 2020 | M26: 17997 | N26: 19762 | O26: -1765 | P26: 19582 | Q26: 21159 | R26: -1577 | S26: 37579 | T26: 40921 | U26: -3342
L27: 2021 | M27: 20288 | N27: 22258 | O27: -1970 | P27: 22172 | Q27: 23892 | R27: -1720 | S27: 42460 | T27: 46150 | U27: -3690

Sheet Świętokrzyskie
A1: MIGRACJE WEWNĘTRZNE LUDNOŚCI NA POBYT STAŁY WEDŁUG PŁCI MIGRANTÓW W LATACH 1998-2021
L2: Świętokrzyskie
L3: Lata | M3: Napływ - mężczyźni | N3: Odpływ - mężczyźni | O3: Saldo migracji - mężczyźni | P3: Napływ - kobiety | Q3: Odpływ - kobiety | R3: Saldo migracji - kobiety | S3: Napływ - ogółem | T3: Odpływ - ogółem | U3: Saldo migracji - ogółem
L4: 1998 | M4: 6863 | N4: 7840 | O4: =M4-N4 -> -977 | P4: 6984 | Q4: 8271 | R4: =P4-Q4 -> -1287 | S4: =M4+P4 -> 13847 | T4: =N4+Q4 -> 16111 | U4: =O4+R4 -> -2264
L5: 1999 | M5: 6630 | N5: 7652 | O5: -1022 | P5: 7266 | Q5: 8539 | R5: -1273 | S5: 13896 | T5: 16191 | U5: -2295
L6: 2000 | M6: 5903 | N6: 6922 | O6: -1019 | P6: 6292 | Q6: 7334 | R6: -1042 | S6: 12195 | T6: 14256 | U6: -2061
L7: 2001 | M7: 5349 | N7: 6381 | O7: -1032 | P7: 5709 | Q7: 6981 | R7: -1272 | S7: 11058 | T7: 13362 | U7: -2304
L8: 2002 | M8: 5857 | N8: 6881 | O8: -1024 | P8: 6227 | Q8: 7575 | R8: -1348 | S8: 12084 | T8: 14456 | U8: -2372
L9: 2003 | M9: 6015 | N9: 7053 | O9: -1038 | P9: 6655 | Q9: 8084 | R9: -1429 | S9: 12670 | T9: 15137 | U9: -2467
L10: 2004 | M10: 6039 | N10: 7006 | O10: -967 | P10: 6514 | Q10: 7862 | R10: -1348 | S10: 12553 | T10: 14868 | U10: -2315
L11: 2005 | M11: 5525 | N11: 6415 | O11: -890 | P11: 6147 | Q11: 7491 | R11: -1344 | S11: 11672 | T11: 13906 | U11: -2234
L12: 2006 | M12: 6002 | N12: 7231 | O12: -1229 | P12: 6696 | Q12: 8262 | R12: -1566 | S12: 12698 | T12: 15493 | U12: -2795
L13: 2007 | M13: 6575 | N13: 7687 | O13: -1112 | P13: 7361 | Q13: 8878 | R13: -1517 | S13: 13936 | T13: 16565 | U13: -2629
L14: 2008 | M14: 4779 | N14: 5539 | O14: -760 | P14: 5695 | Q14: 6951 | R14: -1256 | S14: 10474 | T14: 12490 | U14: -2016
L15: 2009 | M15: 4888 | N15: 5686 | O15: -798 | P15: 5830 | Q15: 7216 | R15: -1386 | S15: 10718 | T15: 12902 | U15: -2184
L16: 2010 | M16: 5151 | N16: 6184 | O16: -1033 | P16: 5896 | Q16: 7427 | R16: -1531 | S16: 11047 | T16: 13611 | U16: -2564
L17: 2011 | M17: 4930 | N17: 5862 | O17: -932 | P17: 5775 | Q17: 7251 | R17: -1476 | S17: 10705 | T17: 13113 | U17: -2408
L18: 2012 | M18: 4575 | N18: 5493 | O18: -918 | P18: 5406 | Q18: 6668 | R18: -1262 | S18: 9981 | T18: 12161 | U18: =O18+R18 -> -2180
L19: 2013 | M19: 4928 | N19: 6058 | O19: -1130 | P19: 5605 | Q19: 7093 | R19: -1488 | S19: 10533 | T19: 13151 | U19: =O19+R19 -> -2618
L20: 2014 | M20: 4577 | N20: 5604 | O20: -1027 | P20: 5269 | Q20: 6706 | R20: -1437 | S20: 9846 | T20: 12310 | U20: =O20+R20 -> -2464
L21: 2015 | M21: 4540 | N21: 5602 | O21: -1062 | P21: 5206 | Q21: 6412 | R21: -1206 | S21: 9746 | T21: 12014 | U21: -2268
L22: 2016 | M22: 4477 | N22: 5391 | O22: -914 | P22: 5054 | Q22: 6111 | R22: -1057 | S22: 9531 | T22: 11502 | U22: -1971
L23: 2017 | M23: 4760 | N23: 5743 | O23: -983 | P23: 5185 | Q23: 6628 | R23: -1443 | S23: 9945 | T23: 12371 | U23: -2426
L24: 2018 | M24: 5323 | N24: 6476 | O24: -1153 | P24: 5957 | Q24: 7432 | R24: -1475 | S24: 11280 | T24: 13908 | U24: -2628
L25: 2019 | M25: 5149 | N25: 6663 | O25: -1514 | P25: 5767 | Q25: 7972 | R25: -2205 | S25: 10916 | T25: 14635 | U25: -3719
L26: 2020 | M26: 4311 | N26: 5265 | O26: -954 | P26: 4941 | Q26: 6130 | R26: -1189 | S26: 9252 | T26: 11395 | U26: -2143
L27: 2021 | M27: 4956 | N27: 6096 | O27: -1140 | P27: 5452 | Q27: 6733 | R27: -1281 | S27: 10408 | T27: 12829 | U27: -2421

Sheet Warmińsko-mazurskie
A1: MIGRACJE WEWNĘTRZNE LUDNOŚCI NA POBYT STAŁY WEDŁUG PŁCI MIGRANTÓW W LATACH 1998-2021
L2: Warmińsko-mazurskie
L3: Lata | M3: Napływ - mężczyźni | N3: Odpływ - mężczyźni | O3: Saldo migracji - mężczyźni | P3: Napływ - kobiety | Q3: Odpływ - kobiety | R3: Saldo migracji - kobiety | S3: Napływ - ogółem | T3: Odpływ - ogółem | U3: Saldo migracji - ogółem
L4: 1998 | M4: 9408 | N4: 9967 | O4: =M4-N4 -> -559 | P4: 9915 | Q4: 10882 | R4: =P4-Q4 -> -967 | S4: =M4+P4 -> 19323 | T4: =N4+Q4 -> 20849 | U4: =O4+R4 -> -1526
L5: 1999 | M5: 8550 | N5: 9408 | O5: -858 | P5: 9508 | Q5: 10645 | R5: -1137 | S5: 18058 | T5: 20053 | U5: -1995
L6: 2000 | M6: 7718 | N6: 8516 | O6: -798 | P6: 8556 | Q6: 9760 | R6: -1204 | S6: 16274 | T6: 18276 | U6: -2002
L7: 2001 | M7: 6971 | N7: 7923 | O7: -952 | P7: 7662 | Q7: 8886 | R7: -1224 | S7: 14633 | T7: 16809 | U7: -2176
L8: 2002 | M8: 7881 | N8: 8691 | O8: -810 | P8: 8475 | Q8: 9801 | R8: -1326 | S8: 16356 | T8: 18492 | U8: -2136
L9: 2003 | M9: 8341 | N9: 8959 | O9: -618 | P9: 9181 | Q9: 10143 | R9: -962 | S9: 17522 | T9: 19102 | U9: -1580
L10: 2004 | M10: 8190 | N10: 8901 | O10: -711 | P10: 8985 | Q10: 10250 | R10: -1265 | S10: 17175 | T10: 19151 | U10: -1976
L11: 2005 | M11: 8055 | N11: 9075 | O11: -1020 | P11: 9000 | Q11: 10241 | R11: -1241 | S11: 17055 | T11: 19316 | U11: -2261
L12: 2006 | M12: 9011 | N12: 10359 | O12: -1348 | P12: 9767 | Q12: 11547 | R12: -1780 | S12: 18778 | T12: 21906 | U12: -3128
L13: 2007 | M13: 9770 | N13: 10940 | O13: -1170 | P13: 10647 | Q13: 12218 | R13: -1571 | S13: 20417 | T13: 23158 | U13: -2741
L14: 2008 | M14: 7786 | N14: 8688 | O14: -902 | P14: 9164 | Q14: 10622 | R14: -1458 | S14: 16950 | T14: 19310 | U14: -2360
L15: 2009 | M15: 7173 | N15: 8310 | O15: -1137 | P15: 8318 | Q15: 9895 | R15: -1577 | S15: 15491 | T15: 18205 | U15: -2714
L16: 2010 | M16: 7878 | N16: 8901 | O16: -1023 | P16: 8894 | Q16: 10592 | R16: -1698 | S16: 16772 | T16: 19493 | U16: -2721
L17: 2011 | M17: 7535 | N17: 8797 | O17: -1262 | P17: 8685 | Q17: 10375 | R17: -1690 | S17: 16220 | T17: 19172 | U17: -2952
L18: 2012 | M18: 7151 | N18: 8173 | O18: -1022 | P18: 7973 | Q18: 9364 | R18: -1391 | S18: 15124 | T18: 17537 | U18: =O18+R18 -> -2413
L19: 2013 | M19: 7769 | N19: 8972 | O19: -1203 | P19: 8691 | Q19: 10195 | R19: -1504 | S19: 16460 | T19: 19167 | U19: =O19+R19 -> -2707
L20: 2014 | M20: 7524 | N20: 8668 | O20: -1144 | P20: 8423 | Q20: 10073 | R20: -1650 | S20: 15974 | T20: 18741 | U20: =O20+R20 -> -2794
L21: 2015 | M21: 7076 | N21: 8133 | O21: -1057 | P21: 7879 | Q21: 9431 | R21: -1552 | S21: 14955 | T21: 17564 | U21: -2609
L22: 2016 | M22: 6782 | N22: 7865 | O22: -1083 | P22: 7616 | Q22: 9236 | R22: -1620 | S22: 14398 | T22: 17101 | U22: -2703
L23: 2017 | M23: 7372 | N23: 8433 | O23: -1061 | P23: 8313 | Q23: 9695 | R23: -1382 | S23: 15685 | T23: 18128 | U23: -2443
L24: 2018 | M24: 8407 | N24: 9936 | O24: -1529 | P24: 9387 | Q24: 11255 | R24: -1868 | S24: 17794 | T24: 21191 | U24: -3397
L25: 2019 | M25: 8528 | N25: 10132 | O25: -1604 | P25: 9495 | Q25: 11662 | R25: -2167 | S25: 18023 | T25: 21794 | U25: -3771
L26: 2020 | M26: 7319 | N26: 8255 | O26: -936 | P26: 8171 | Q26: 9348 | R26: -1177 | S26: 15490 | T26: 17603 | U26: -2113
L27: 2021 | M27: 7595 | N27: 8661 | O27: -1066 | P27: 8412 | Q27: 9737 | R27: -1325 | S27: 16007 | T27: 18398 | U27: -2391

Sheet Wielkopolskie
A1: MIGRACJE WEWNĘTRZNE LUDNOŚCI NA POBYT STAŁY WEDŁUG PŁCI MIGRANTÓW W LATACH 1998-2021
L2: Wielkopolskie
L3: Lata | M3: Napływ - mężczyźni | N3: Odpływ - mężczyźni | O3: Saldo migracji - mężczyźni | P3: Napływ - kobiety | Q3: Odpływ - kobiety | R3: Saldo migracji - kobiety | S3: Napływ - ogółem | T3: Odpływ - ogółem | U3: Saldo migracji - ogółem
L4: 1998 | M4: 18880 | N4: 18291 | O4: =M4-N4 -> 589 | P4: 20271 | Q4: 19154 | R4: =P4-Q4 -> 1117 | S4: =M4+P4 -> 39151 | T4: =N4+Q4 -> 37445 | U4: =O4+R4 -> 1706
L5: 1999 | M5: 18522 | N5: 17768 | O5: 754 | P5: 20507 | Q5: 19469 | R5: 1038 | S5: 39029 | T5: 37237 | U5: 1792
L6: 2000 | M6: 17283 | N6: 16641 | O6: 642 | P6: 19294 | Q6: 18341 | R6: 953 | S6: 36577 | T6: 34982 | U6: 1595
L7: 2001 | M7: 17353 | N7: 16431 | O7: 922 | P7: 19465 | Q7: 17957 | R7: 1508 | S7: 36818 | T7: 34388 | U7: 2430
L8: 2002 | M8: 18169 | N8: 17139 | O8: 1030 | P8: 20106 | Q8: 18830 | R8: 1276 | S8: 38275 | T8: 35969 | U8: 2306
L9: 2003 | M9: 19447 | N9: 18440 | O9: 1007 | P9: 21999 | Q9: 20767 | R9: 1232 | S9: 41446 | T9: 39207 | U9: 2239
L10: 2004 | M10: 20230 | N10: 19074 | O10: 1156 | P10: 22219 | Q10: 20922 | R10: 1297 | S10: 42449 | T10: 39996 | U10: 2453
L11: 2005 | M11: 20213 | N11: 19045 | O11: 1168 | P11: 22644 | Q11: 21289 | R11: 1355 | S11: 42857 | T11: 40334 | U11: 2523
L12: 2006 | M12: 22431 | N12: 21322 | O12: 1109 | P12: 25020 | Q12: 23713 | R12: 1307 | S12: 47451 | T12: 45035 | U12: 2416
L13: 2007 | M13: 25398 | N13: 23948 | O13: 1450 | P13: 28063 | Q13: 26387 | R13: 1676 | S13: 53461 | T13: 50335 | U13: 3126
L14: 2008 | M14: 19494 | N14: 18568 | O14: 926 | P14: 22610 | Q14: 21532 | R14: 1078 | S14: 42104 | T14: 40100 | U14: 2004
L15: 2009 | M15: 19214 | N15: 18288 | O15: 926 | P15: 22809 | Q15: 21883 | R15: 926 | S15: 42023 | T15: 40171 | U15: 1852
L16: 2010 | M16: 19397 | N16: 18667 | O16: 730 | P16: 22966 | Q16: 21990 | R16: 976 | S16: 42363 | T16: 40657 | U16: 1706
L17: 2011 | M17: 19444 | N17: 18587 | O17: 857 | P17: 22886 | Q17: 21856 | R17: 1030 | S17: 42330 | T17: 40443 | U17: 1887
L18: 2012 | M18: 18533 | N18: 17821 | O18: 712 | P18: 21611 | Q18: 20962 | R18: 649 | S18: 40144 | T18: 38783 | U18: =O18+R18 -> 1361
L19: 2013 | M19: 20917 | N19: 20212 | O19: 705 | P19: 23571 | Q19: 22631 | R19: 940 | S19: 44488 | T19: 42843 | U19: =O19+R19 -> 1645
L20: 2014 | M20: 19353 | N20: 18583 | O20: 770 | P20: 21939 | Q20: 21328 | R20: 611 | S20: 41292 | T20: 39911 | U20: =O20+R20 -> 1381
L21: 2015 | M21: 18992 | N21: 18387 | O21: 605 | P21: 21355 | Q21: 20753 | R21: 602 | S21: 40347 | T21: 39140 | U21: 1207
L22: 2016 | M22: 18607 | N22: 18159 | O22: 448 | P22: 21208 | Q22: 20673 | R22: 535 | S22: 39815 | T22: 38832 | U22: 983
L23: 2017 | M23: 19601 | N23: 19036 | O23: 565 | P23: 21613 | Q23: 21163 | R23: 450 | S23: 41214 | T23: 40199 | U23: 1015
L24: 2018 | M24: 21772 | N24: 21293 | O24: 479 | P24: 24060 | Q24: 23418 | R24: 642 | S24: 45832 | T24: 44711 | U24: 1121
L25: 2019 | M25: 22602 | N25: 22074 | O25: 528 | P25: 25382 | Q25: 24707 | R25: 675 | S25: 47984 | T25: 46781 | U25: 1203
L26: 2020 | M26: 19162 | N26: 18473 | O26: 689 | P26: 21017 | Q26: 20215 | R26: 802 | S26: 40179 | T26: 38688 | U26: 1491
L27: 2021 | M27: 21009 | N27: 20285 | O27: 724 | P27: 23264 | Q27: 22189 | R27: 1075 | S27: 44273 | T27: 42474 | U27: 1799

Sheet Zachodniopomorskie
A1: MIGRACJE WEWNĘTRZNE LUDNOŚCI NA POBYT STAŁY WEDŁUG PŁCI MIGRANTÓW W LATACH 1998-2021
L2: Zachodniopomorskie
L3: Lata | M3: Napływ - mężczyźni | N3: Odpływ - mężczyźni | O3: Saldo migracji - mężczyźni | P3: Napływ - kobiety | Q3: Odpływ - kobiety | R3: Saldo migracji - kobiety | S3: Napływ - ogółem | T3: Odpływ - ogółem | U3: Saldo migracji - ogółem
L4: 1998 | M4: 10355 | N4: 10440 | O4: =M4-N4 -> -85 | P4: 10912 | Q4: 11077 | R4: =P4-Q4 -> -165 | S4: =M4+P4 -> 21267 | T4: =N4+Q4 -> 21517 | U4: =O4+R4 -> -250
L5: 1999 | M5: 10280 | N5: 10484 | O5: -204 | P5: 11125 | Q5: 11354 | R5: -229 | S5: 21405 | T5: 21838 | U5: -433
L6: 2000 | M6: 9635 | N6: 9661 | O6: -26 | P6: 10650 | Q6: 10787 | R6: -137 | S6: 20285 | T6: 20448 | U6: -163
L7: 2001 | M7: 9081 | N7: 9257 | O7: -176 | P7: 9770 | Q7: 10152 | R7: -382 | S7: 18851 | T7: 19409 | U7: -558
L8: 2002 | M8: 10109 | N8: 10536 | O8: -427 | P8: 11145 | Q8: 11670 | R8: -525 | S8: 21254 | T8: 22206 | U8: -952
L9: 2003 | M9: 9770 | N9: 10430 | O9: -660 | P9: 10828 | Q9: 11554 | R9: -726 | S9: 20598 | T9: 21984 | U9: -1386
L10: 2004 | M10: 10467 | N10: 10967 | O10: -500 | P10: 11463 | Q10: 12053 | R10: -590 | S10: 21930 | T10: 23020 | U10: -1090
L11: 2005 | M11: 10390 | N11: 10774 | O11: -384 | P11: 11089 | Q11: 11745 | R11: -656 | S11: 21479 | T11: 22519 | U11: -1040
L12: 2006 | M12: 11054 | N12: 11588 | O12: -534 | P12: 12076 | Q12: 12870 | R12: -794 | S12: 23130 | T12: 24458 | U12: -1328
L13: 2007 | M13: 11894 | N13: 12626 | O13: -732 | P13: 13077 | Q13: 13890 | R13: -813 | S13: 24971 | T13: 26516 | U13: -1545
L14: 2008 | M14: 9528 | N14: 10126 | O14: -598 | P14: 10956 | Q14: 11509 | R14: -553 | S14: 20484 | T14: 21635 | U14: -1151
L15: 2009 | M15: 9432 | N15: 9758 | O15: -326 | P15: 10444 | Q15: 11108 | R15: -664 | S15: 19876 | T15: 20866 | U15: -990
L16: 2010 | M16: 9729 | N16: 10220 | O16: -491 | P16: 10893 | Q16: 11513 | R16: -620 | S16: 20622 | T16: 21733 | U16: -1111
L17: 2011 | M17: 10086 | N17: 10470 | O17: -384 | P17: 10982 | Q17: 11569 | R17: -587 | S17: 21068 | T17: 22039 | U17: -971
L18: 2012 | M18: 9073 | N18: 9525 | O18: -452 | P18: 10104 | Q18: 10691 | R18: -587 | S18: 19177 | T18: 20216 | U18: =O18+R18 -> -1039
L19: 2013 | M19: 9810 | N19: 10101 | O19: -291 | P19: 10902 | Q19: 11276 | R19: -374 | S19: 20712 | T19: 21377 | U19: =O19+R19 -> -665
L20: 2014 | M20: 9532 | N20: 9943 | O20: -411 | P20: 10436 | Q20: 10945 | R20: -509 | S20: 19968 | T20: 20888 | U20: =O20+R20 -> -920
L21: 2015 | M21: 8957 | N21: 9260 | O21: -303 | P21: 9734 | Q21: 10163 | R21: -429 | S21: 18691 | T21: 19423 | U21: -732
L22: 2016 | M22: 9004 | N22: 9294 | O22: -290 | P22: 9974 | Q22: 10308 | R22: -334 | S22: 18978 | T22: 19602 | U22: -624
L23: 2017 | M23: 9344 | N23: 9648 | O23: -304 | P23: 10433 | Q23: 10937 | R23: -504 | S23: 19777 | T23: 20585 | U23: -808
L24: 2018 | M24: 10589 | N24: 10992 | O24: -403 | P24: 11653 | Q24: 12193 | R24: -540 | S24: 22242 | T24: 23185 | U24: -943
L25: 2019 | M25: 10770 | N25: 11143 | O25: -373 | P25: 12024 | Q25: 12535 | R25: -511 | S25: 22794 | T25: 23678 | U25: -884
L26: 2020 | M26: 8628 | N26: 8987 | O26: -359 | P26: 9696 | Q26: 10084 | R26: -388 | S26: 18324 | T26: 19071 | U26: -747
L27: 2021 | M27: 9635 | N27: 10036 | O27: -401 | P27: 10573 | Q27: 11118 | R27: -545 | S27: 20208 | T27: 21154 | U27: -946
